bitfinex-derivatives/quotes_ETHF0:USTF0_20241230
["timestamp","ask_amount","ask_price","bid_price","bid_amount"]
[1735556736466,0.29442,3402.8,3402.7,0.29442]
[1735556736769,2.65623625,3402.7,3402.6,4.37423]
[1735556737066,2.65623625,3402.7,3402.6,4.0798]
[1735556739968,2.65623625,3402.7,3402.6,3.6383]
[1735556742175,0.29445,3402.4,3402.3,0.4157]
[1735556742473,2.65626625,3402.4,3402.3,0.4157]
[1735556743064,0.29446,3402.3,3402.2,3.63798837]
[1735556744264,0.73605,3402.8,3402.2,3.63798837]
[1735556744265,2.28660916,3403.4,3402.3,0.73615]
[1735556744469,2.28660916,3403.4,3403.3,3.2078]
[1735556744668,2.28660916,3403.4,3403.3,3.50217]
[1735556745072,3.43797375,3403.5,3403.3,3.50217]
[1735556745272,3.73233375,3403.5,3403.3,3.50217]
[1735556745574,3.73233375,3403.5,3403.1,0.8828]
[1735556745575,0.29436,3403.4,3403.2,0.29438]
[1735556745867,2.65617625,3403.4,3403.1,1.17718]
[1735556746073,3.50218,3403.2,3403.1,0.4293]
[1735556746569,3.2078,3403.2,3402.6,1.6575]
[1735556746772,0.29441,3402.9,3402.7,5.3386412]
[1735556747072,2.36181625,3403.1,3402.7,5.0442212]
[1735556747271,0.29441,3402.9,3402.7,5.0442212]
[1735556747473,0.29441,3402.9,3402.7,5.7894412]
[1735556747670,0.29441,3402.8,3402.7,5.4950212]
[1735556747869,0.29441,3402.8,3402.7,0.8801]
[1735556748172,2.36181625,3403.1,3402.7,1.17452]
[1735556748475,0.2944,3403.0,3402.8,0.29441]
[1735556748666,2.36181625,3403.1,3402.7,0.8801]
[1735556748866,0.29441,3402.9,3402.7,1.17452]
[1735556749276,2.36181625,3403.1,3402.7,0.8801]
[1735556749473,2.36181625,3403.1,3403.0,0.2944]
[1735556750372,0.29441,3402.8,3402.7,0.4508]
[1735556750672,0.4416,3403.0,3402.7,0.4508]
[1735556750974,3.2078,3403.1,3402.7,0.9083]
[1735556751174,0.2944,3403.0,3402.8,0.29441]
[1735556751470,0.29441,3402.9,3402.7,0.9083]
[1735556751673,3.2078,3403.1,3402.7,0.9083]
[1735556751875,0.29441,3402.8,3402.7,0.9083]
[1735556752672,2.36181625,3402.9,3402.7,1.20272]
[1735556752872,2.65622625,3402.9,3402.7,1.20272]
[1735556753177,0.29441,3402.8,3402.7,0.9083]
[1735556753576,2.36181625,3402.9,3402.7,0.9083]
[1735556753773,0.29441,3402.8,3402.7,0.9083]
[1735556754776,2.65622625,3402.8,3402.7,0.9083]
[1735556756874,0.29441,3402.8,3402.7,0.9083]
[1735556758083,3.2078,3403.1,3402.7,0.9083]
[1735556758084,2.36181625,3402.9,3402.7,0.9083]
[1735556758380,0.29441,3402.8,3402.7,0.9083]
[1735556759185,2.36181625,3402.9,3402.7,1.20272]
[1735556759785,2.36181625,3402.9,3402.7,0.9083]
[1735556760085,2.65622625,3402.9,3402.7,1.20272]
[1735556760584,2.36181625,3402.9,3402.7,1.20272]
[1735556760787,2.65622625,3402.9,3402.7,1.20272]
[1735556761272,2.36181625,3402.9,3402.7,1.20272]
[1735556761475,2.36181625,3402.9,3402.7,0.9083]
[1735556761886,2.36181625,3402.9,3402.7,1.20272]
[1735556762079,2.36181625,3402.9,3402.7,0.9083]
[1735556762382,2.65622625,3402.9,3402.7,0.9083]
[1735556763084,2.65622625,3402.9,3402.7,1.20272]
[1735556763778,2.36181625,3402.9,3402.7,0.9083]
[1735556763983,0.29441,3402.8,3402.7,0.9083]
[1735556765188,2.65622625,3402.9,3402.7,1.20272]
[1735556765780,2.36181625,3402.9,3402.7,0.9083]
[1735556765979,2.65622625,3402.9,3402.7,1.20272]
[1735556766179,2.65622625,3402.9,3402.7,5.8176412]
[1735556766381,0.29441,3402.8,3402.7,5.5232212]
[1735556773095,0.29441,3402.8,3402.7,5.8176412]
[1735556773296,0.29441,3402.8,3402.7,5.5232212]
[1735556773895,0.29441,3402.8,3402.7,5.8176412]
[1735556774798,0.29441,3402.8,3402.7,5.5232212]
[1735556775794,0.29441,3402.8,3402.7,0.9083]
[1735556776196,0.29441,3402.8,3402.7,1.20272]
[1735556777392,0.29441,3402.8,3402.7,0.9083]
[1735556778000,0.29441,3402.8,3402.7,8.12512712]
[1735556778994,2.36181625,3402.9,3402.7,7.83070712]
[1735556779394,2.65622625,3402.9,3402.7,8.12512712]
[1735556779596,0.29441,3402.8,3402.7,7.83070712]
[1735556780092,2.65622625,3402.9,3402.7,8.12512712]
[1735556780294,0.29441,3402.8,3402.7,7.83070712]
[1735556780490,0.29441,3402.8,3402.7,8.12512712]
[1735556780694,0.29441,3402.8,3402.7,7.83070712]
[1735556780898,0.29441,3402.8,3402.7,8.12512712]
[1735556781398,0.29441,3402.8,3402.7,7.83070712]
[1735556781894,2.65622625,3402.9,3402.7,7.83070712]
[1735556782099,0.29441,3402.8,3402.7,7.83070712]
[1735556788300,2.36181625,3402.9,3402.7,7.83070712]
[1735556788498,2.27795925,3403.0,3402.9,0.29441]
[1735556790005,5.1110426,3403.3,3402.8,3.2078]
[1735556790006,0.29438,3403.2,3402.8,14.72436477]
[1735556790202,2.65620625,3403.1,3403.0,0.29439]
[1735556790506,2.36181625,3403.1,3403.0,0.29439]
[1735556791405,2.36181625,3403.1,3402.9,9.26212963]
[1735556791604,0.2944,3403.0,3402.9,9.26212963]
[1735556793010,0.2944,3403.0,3402.9,6.94855622]
[1735556796520,0.29441,3402.9,3402.8,6.94855622]
[1735556797718,0.29441,3402.9,3402.7,10.46484963]
[1735556798017,4.6397755,3403.1,3402.7,10.17042963]
[1735556798218,2.36181625,3402.8,3402.7,10.17042963]
[1735556798413,2.27795925,3403.1,3402.7,10.17042963]
[1735556798619,2.27795925,3403.1,3403.0,3.5022]
[1735556798819,2.27795925,3403.1,3403.0,8.13453557]
[1735556800218,2.65617625,3403.5,3403.3,0.29436]
[1735556800419,2.65617625,3403.5,3403.4,1.15486]
[1735556800814,2.65617625,3403.5,3403.4,0.8605]
[1735556801015,2.36181625,3403.5,3403.1,0.4136]
[1735556801316,2.65619625,3403.2,3403.1,10.53374549]
[1735556802322,2.65619625,3403.2,3403.1,8.21886252]
[1735556803522,2.36181625,3403.2,3403.1,8.21886252]
[1735556803723,2.65619625,3403.2,3403.1,8.21886252]
[1735556805724,0.29438,3403.2,3403.1,8.21886252]
[1735556806418,0.29438,3403.2,3403.1,8.51325252]
[1735556806618,2.72475925,3403.5,3403.1,8.51325252]
[1735556806820,0.29438,3403.2,3403.1,8.21886252]
[1735556807022,0.29438,3403.3,3403.1,8.51324252]
[1735556807217,0.29437,3403.4,3403.2,0.29437]
[1735556807724,0.29437,3403.4,3403.2,4.92324385]
[1735556807923,2.27795925,3403.5,3403.2,4.62887385]
[1735556807924,0.29437,3403.3,3403.2,4.62887385]
[1735556808218,0.29437,3403.4,3403.2,4.92325385]
[1735556809227,2.27795925,3403.5,3403.2,4.62887385]
[1735556809528,0.29437,3403.3,3403.2,4.62887385]
[1735556810728,0.29438,3403.2,3403.1,4.62887385]
[1735556811928,0.29439,3403.1,3403.0,3.2078]
[1735556812234,0.2944,3403.0,3402.9,4.62887385]
[1735556814733,0.2944,3403.0,3402.6,4.62887385]
[1735556814933,0.29442,3402.7,3402.6,4.62887385]
[1735556816230,0.29443,3402.6,3402.5,4.62887385]
[1735556818735,0.29444,3402.5,3402.4,5.07067385]
[1735556819927,2.65625625,3402.5,3402.4,4.62887385]
[1735556821120,0.29446,3402.3,3402.2,0.01068837]
[1735556825531,0.29448,3402.1,3402.0,4.62887385]
[1735556825730,2.65629625,3402.1,3402.0,4.62887385]
[1735556825935,2.65629625,3402.1,3401.3,6.0110865]
[1735556825936,0.29454,3401.4,3401.3,6.0110865]
[1735556826131,0.29454,3401.4,3401.3,5.5596865]
[1735556827029,0.29454,3401.4,3401.3,0.93081265]
[1735556827733,0.74464,3401.4,3401.3,0.93081265]
[1735556829240,1.19054,3401.4,3401.3,0.93081265]
[1735556829435,1.46694,3401.4,3401.3,0.93081265]
[1735556829636,1.19054,3401.4,3401.3,0.93081265]
[1735556830440,0.29454,3401.4,3401.3,0.93081265]
[1735556830637,2.27925813,3401.8,3401.3,0.93081265]
[1735556830837,0.29452,3401.6,3401.4,1.3273]
[1735556831046,0.29451,3401.7,3401.4,1.3273]
[1735556831335,2.27925813,3401.8,3401.5,0.29453]
[1735556831540,2.27925813,3401.8,3401.4,1.3273]
[1735556831736,0.29451,3401.7,3401.5,0.29452]
[1735556832737,3.2078,3402.2,3401.6,0.29452]
[1735556832943,0.29449,3402.0,3401.7,0.29451]
[1735556833143,3.2078,3402.2,3401.7,0.29451]
[1735556833338,3.2078,3402.2,3401.7,3.2078]
[1735556833544,0.29448,3402.1,3401.8,0.2945]
[1735556833841,0.29448,3402.1,3401.7,3.2078]
[1735556833842,3.2078,3402.2,3401.7,3.2078]
[1735556834139,0.2945,3401.8,3401.7,3.2078]
[1735556834837,3.2078,3402.2,3401.5,1.183]
[1735556835030,0.7362,3402.1,3401.4,5.95617385]
[1735556835443,0.29448,3402.0,3401.4,5.95617385]
[1735556835643,0.29452,3401.6,3401.4,5.95617385]
[1735556835945,0.29453,3401.5,3401.4,5.95617385]
[1735556836134,0.29453,3401.5,3401.4,1.3273]
[1735556837143,0.29452,3401.6,3401.5,0.29453]
[1735556837443,3.09801625,3402.1,3401.4,1.3273]
[1735556837643,0.29453,3401.5,3401.4,1.3273]
[1735556840741,0.29453,3401.5,3401.3,0.93081265]
[1735556840742,2.36181625,3401.5,3401.3,0.93081265]
[1735556840945,0.29454,3401.4,3401.3,0.93081265]
[1735556841751,0.73224,3401.4,3401.3,0.93081265]
[1735556842239,1.00864,3401.4,3401.3,0.93081265]
[1735556843250,0.73224,3401.4,3401.3,0.93081265]
[1735556843748,5.73224,3401.4,3401.3,0.93081265]
[1735556843947,5.73224,3401.4,3401.3,2.65e-06]
[1735556845744,0.73224,3401.4,3401.3,2.65e-06]
[1735556845945,5.73224,3401.4,3401.3,2.65e-06]
[1735556847643,5.4377,3401.4,3400.3,0.4521]
[1735556847950,2.65643625,3400.4,3400.3,0.4521]
[1735556848544,0.29466,3400.0,3399.8,4.62887385]
[1735556848745,2.65648625,3399.9,3399.8,4.62887385]
[1735556849051,3.2078,3400.1,3399.7,0.432]
[1735556849253,0.29467,3399.8,3399.7,0.432]
[1735556849845,2.36181625,3399.9,3399.7,0.432]
[1735556850052,3.2078,3400.1,3399.7,0.432]
[1735556850249,0.29467,3399.8,3399.7,0.432]
[1735556850449,3.2078,3400.1,3399.7,0.432]
[1735556850450,0.29467,3399.9,3399.7,0.432]
[1735556850652,0.29467,3399.8,3399.7,0.432]
[1735556850852,2.65648625,3399.8,3399.7,0.432]
[1735556851853,2.65648625,3399.8,3399.0,4.3908]
[1735556851854,2.36181625,3399.8,3399.0,3.2078]
[1735556852042,2.36181625,3399.2,3399.1,0.29473]
[1735556852246,2.36181625,3399.2,3399.0,3.2078]
[1735556852448,2.36181625,3399.2,3399.0,3.50254]
[1735556852853,2.36181625,3399.2,3399.0,3.2078]
[1735556853057,2.65654625,3399.2,3399.0,3.2078]
[1735556853256,0.29473,3399.1,3399.0,3.2078]
[1735556854555,2.36181625,3399.2,3398.5,3.2078]
[1735556854756,2.36181625,3398.9,3398.5,3.2078]
[1735556855058,2.65656625,3398.9,3398.5,3.50258]
[1735556855261,0.29477,3398.8,3398.5,3.2078]
[1735556855554,0.29476,3398.8,3398.5,3.2078]
[1735556855755,2.36181625,3398.9,3398.5,3.2078]
[1735556856058,2.65659625,3398.6,3398.5,3.2078]
[1735556856956,2.36181625,3398.6,3398.4,0.8735]
[1735556857256,0.29479,3398.5,3398.4,0.8735]
[1735556859053,2.36181625,3398.6,3398.4,0.8735]
[1735556859861,0.29479,3398.5,3398.4,0.8735]
[1735556861961,0.29479,3398.5,3398.4,0.4402]
[1735556863256,2.36181625,3398.6,3398.0,3.2078]
[1735556863457,2.65662625,3398.2,3398.1,0.4552]
[1735556864058,2.36181625,3398.2,3397.9,0.4458]
[1735556864266,0.29482,3398.1,3398.0,0.4234]
[1735556865462,2.36181625,3398.2,3397.5,3.2078]
[1735556865666,2.65668625,3397.6,3397.5,3.2078]
[1735556865864,2.36181625,3397.6,3397.5,3.2078]
[1735556866663,2.65668625,3397.6,3397.5,3.2078]
[1735556868155,0.29489,3397.3,3397.2,0.8723]
[1735556868360,2.65670625,3397.3,3397.2,0.8723]
[1735556868763,2.65670625,3397.3,3397.2,4.0801]
[1735556868961,2.36181625,3397.3,3397.2,4.0801]
[1735556869164,2.65670625,3397.3,3397.2,4.0801]
[1735556869467,2.36181625,3397.3,3397.2,4.0801]
[1735556869668,2.65670625,3397.3,3397.2,0.4234]
[1735556869869,0.29495,3396.6,3396.5,1.2896]
[1735556870063,2.65676625,3396.6,3396.5,0.4565]
[1735556870260,2.65676625,3396.6,3396.1,3.2078]
[1735556870261,0.29499,3396.2,3396.1,3.2078]
[1735556870463,2.65680625,3396.2,3396.1,3.2078]
[1735556871164,2.65680625,3396.2,3395.7,1.2896]
[1735556871165,2.36181625,3396.2,3395.7,3.2078]
[1735556871371,0.29503,3395.7,3395.6,4.62887385]
[1735556871868,0.29503,3395.7,3395.3,3.2078]
[1735556872172,0.295,3396.1,3395.6,0.29503]
[1735556872363,0.295,3396.1,3395.7,3.50283]
[1735556872562,2.36181625,3396.2,3395.7,3.50283]
[1735556872563,2.36181625,3396.2,3395.8,0.8435]
[1735556872767,2.65680625,3396.2,3395.8,1.13852]
[1735556872965,2.36181625,3396.2,3395.8,1.13852]
[1735556873167,2.65680625,3396.2,3395.8,1.13852]
[1735556873670,2.36181625,3396.2,3395.8,0.8435]
[1735556874361,2.36181625,3396.2,3396.1,3.5028]
[1735556874563,2.65677625,3396.5,3396.1,3.50279]
[1735556874769,2.65677625,3396.5,3396.2,0.4217]
[1735556874961,2.36181625,3396.5,3396.2,0.4217]
[1735556875167,0.29498,3396.3,3396.2,0.4217]
[1735556875372,2.36181625,3396.5,3396.2,0.4217]
[1735556875666,2.65677625,3396.5,3396.2,0.4217]
[1735556876371,2.36181625,3396.5,3396.2,0.71668]
[1735556876561,2.65677625,3396.5,3396.2,0.4217]
[1735556876763,0.29498,3396.4,3396.2,0.4217]
[1735556876962,2.36181625,3396.5,3396.2,0.4217]
[1735556877163,0.29497,3396.4,3396.2,0.4217]
[1735556878061,2.36181625,3396.5,3396.1,3.2078]
[1735556878268,2.65680625,3396.2,3396.1,3.2078]
[1735556878666,2.36181625,3396.2,3396.1,3.2078]
[1735556879774,2.36181625,3396.2,3396.1,3.5028]
[1735556879975,2.36181625,3396.2,3396.1,3.2078]
[1735556880175,2.65680625,3396.2,3396.1,3.2078]
[1735556880677,2.36181625,3396.2,3395.9,0.4222]
[1735556880971,0.295,3396.0,3395.9,0.4222]
[1735556885274,3.2078,3396.5,3395.9,0.4222]
[1735556885473,2.36181625,3396.6,3396.1,3.2078]
[1735556885773,3.6598,3396.9,3396.2,1.218]
[1735556885774,3.2078,3396.9,3396.2,1.218]
[1735556885973,0.29494,3396.8,3396.5,0.29496]
[1735556886171,0.29494,3396.8,3396.6,0.8824]
[1735556886472,2.36181625,3397.2,3396.7,3.50274]
[1735556886473,0.29492,3397.0,3396.7,3.50274]
[1735556886977,0.29492,3397.0,3396.7,3.2078]
[1735556887275,2.36181625,3397.5,3396.7,3.2078]
[1735556887473,0.2949,3397.2,3396.9,0.29492]
[1735556887673,0.2949,3397.3,3397.0,0.29491]
[1735556887871,2.36181625,3397.5,3397.0,0.29491]
[1735556888066,5.98301625,3397.8,3397.1,3.2078]
[1735556888281,0.29486,3397.7,3397.5,3.2078]
[1735556888575,2.36181625,3398.1,3397.6,0.4232]
[1735556888775,2.65664625,3398.1,3397.7,0.29485]
[1735556888973,2.36181625,3398.1,3397.7,0.29486]
[1735556889175,2.65663625,3398.1,3397.7,0.29486]
[1735556889369,3.2078,3398.8,3397.6,0.4232]
[1735556889570,2.65657625,3398.8,3398.4,0.29479]
[1735556889778,2.65657625,3398.8,3397.7,0.73713]
[1735556889779,2.65655625,3399.1,3398.6,3.50257]
[1735556890070,0.4159,3399.5,3398.6,3.2078]
[1735556890071,2.36181625,3398.8,3398.6,3.2078]
[1735556890578,0.2948,3398.4,3398.1,4.4258]
[1735556890771,2.36181625,3398.4,3398.1,4.4258]
[1735556891377,2.36181625,3398.4,3398.1,4.72062]
[1735556891775,2.36181625,3398.4,3398.1,4.4258]
[1735556891974,0.29481,3398.2,3398.1,4.4258]
[1735556892172,0.29481,3398.3,3398.1,4.4258]
[1735556892371,0.29481,3398.2,3398.1,4.4258]
[1735556892674,0.29481,3398.3,3398.1,4.4258]
[1735556892879,0.29481,3398.2,3398.1,4.4258]
[1735556893180,2.36181625,3398.4,3398.1,4.4258]
[1735556893573,2.36181625,3398.7,3398.1,4.4258]
[1735556893772,2.36181625,3398.7,3398.3,0.2948]
[1735556893976,0.29478,3398.6,3398.3,0.2948]
[1735556894172,0.29478,3398.6,3398.4,0.4378]
[1735556895073,2.36181625,3398.7,3398.4,0.4378]
[1735556895274,3.2078,3398.8,3398.4,0.4378]
[1735556895471,3.2078,3398.8,3398.5,0.4204]
[1735556895671,3.50256,3398.8,3398.5,0.4204]
[1735556895874,3.2078,3398.8,3398.5,0.71518]
[1735556896078,3.2078,3398.8,3398.6,0.29478]
[1735556896674,3.50256,3398.8,3398.5,1.16508]
[1735556896875,0.29474,3399.1,3398.6,3.2078]
[1735556897082,2.65653625,3399.3,3398.9,0.29475]
[1735556897284,0.29473,3399.2,3398.9,0.29475]
[1735556897475,0.29473,3399.2,3398.6,3.2078]
[1735556897476,2.36181625,3399.6,3398.6,3.2078]
[1735556897777,0.29468,3399.7,3399.3,0.29471]
[1735556897979,0.4233,3400.0,3399.6,3.50249]
[1735556898175,0.71796,3400.0,3399.6,3.50249]
[1735556898575,0.29466,3400.0,3399.6,3.50249]
[1735556898875,0.29467,3399.9,3399.6,3.2078]
[1735556899080,0.29466,3400.1,3399.6,3.50248]
[1735556899481,0.29464,3400.2,3399.7,0.29468]
[1735556900179,0.73551,3400.5,3400.1,0.29465]
[1735556900384,0.73551,3400.5,3400.0,3.2078]
[1735556900685,0.29461,3400.5,3400.1,0.29465]
[1735556900883,0.29461,3400.5,3400.0,3.2078]
[1735556900884,3.2078,3400.8,3400.0,3.2078]
[1735556901077,0.29458,3400.9,3400.5,3.50241]
[1735556901382,0.29459,3400.8,3400.5,3.2078]
[1735556901580,0.4409,3401.1,3400.5,3.2078]
[1735556901977,2.36181625,3400.9,3400.5,3.2078]
[1735556902171,0.29459,3400.8,3400.5,3.2078]
[1735556902486,0.29457,3401.0,3400.5,3.50241]
[1735556903076,0.29458,3400.9,3400.5,3.50241]
[1735556903276,0.29459,3400.9,3400.5,3.2078]
[1735556903578,0.29459,3400.9,3400.5,3.50241]
[1735556903885,0.29457,3401.0,3400.5,3.50241]
[1735556904182,3.2078,3401.3,3400.5,4.4248]
[1735556904384,0.29456,3401.1,3400.7,0.29459]
[1735556904677,3.2078,3401.3,3400.5,5.15061]
[1735556904678,0.29458,3400.9,3400.5,5.15061]
[1735556904883,0.29458,3400.9,3400.5,3.93361]
[1735556905091,0.29457,3401.0,3400.6,0.2946]
[1735556905383,0.29457,3401.0,3400.5,3.639]
[1735556905384,0.29456,3401.1,3400.7,0.29459]
[1735556905577,0.29457,3401.0,3400.6,0.2946]
[1735556905777,0.29456,3401.2,3400.8,0.29458]
[1735556906070,0.29456,3401.1,3400.8,0.29458]
[1735556906278,0.29456,3401.1,3400.7,0.29459]
[1735556906780,3.2078,3401.3,3400.5,3.639]
[1735556906781,0.2946,3400.6,3400.5,3.2078]
[1735556906977,0.29462,3400.5,3400.2,1.217]
[1735556907284,0.29466,3400.0,3399.7,3.639]
[1735556907582,0.29465,3400.1,3399.8,0.29467]
[1735556907884,5.56961625,3400.6,3399.7,3.639]
[1735556908084,3.2078,3400.6,3399.7,3.639]
[1735556908481,0.29461,3400.5,3400.1,0.29464]
[1735556908688,0.29461,3400.5,3400.2,0.72104]
[1735556908890,2.36181625,3401.2,3400.3,3.2078]
[1735556909075,2.36181625,3401.2,3400.5,0.29461]
[1735556909289,0.29459,3400.9,3400.3,3.6345]
[1735556909475,2.36181625,3401.2,3400.5,0.29461]
[1735556909788,2.36181625,3401.2,3400.3,3.6345]
[1735556909981,0.29457,3401.1,3400.8,0.29459]
[1735556910180,2.36181625,3401.2,3400.3,3.6345]
[1735556910381,0.29459,3400.9,3400.5,0.29461]
[1735556910583,0.2946,3400.7,3400.4,0.29462]
[1735556910784,2.36181625,3401.2,3400.4,0.29462]
[1735556911088,0.29459,3400.8,3400.5,0.29461]
[1735556911291,0.29458,3401.0,3400.8,0.29459]
[1735556911484,0.29458,3401.0,3400.3,3.6345]
[1735556911485,3.6255,3401.4,3400.3,3.6345]
[1735556911983,0.29461,3400.6,3400.4,0.29462]
[1735556912889,0.29461,3400.6,3400.3,3.6345]
[1735556912890,2.36181625,3401.2,3400.3,3.6345]
[1735556913092,0.29459,3400.8,3400.6,0.2946]
[1735556914883,0.29457,3401.1,3400.9,0.29458]
[1735556915087,3.2078,3401.4,3400.3,3.6345]
[1735556915390,0.29457,3401.0,3400.8,0.29458]
[1735556915784,0.29457,3401.0,3400.3,3.6345]
[1735556915785,0.29457,3401.0,3400.9,0.29458]
[1735556915990,0.29457,3401.0,3400.8,0.29458]
[1735556916195,0.29457,3401.0,3400.9,0.4233]
[1735556916487,0.29457,3401.1,3400.9,0.71788]
[1735556916687,0.29453,3401.5,3401.3,0.29454]
[1735556917889,0.2945,3401.8,3401.2,0.29455]
[1735556918080,0.29453,3401.5,3401.2,0.29455]
[1735556918489,3.2078,3401.9,3401.1,0.8715]
[1735556918692,3.2078,3401.9,3401.3,0.29454]
[1735556918693,0.29453,3401.5,3401.3,0.29454]
[1735556918991,0.29451,3401.7,3401.1,0.8715]
[1735556919186,2.78411625,3401.8,3401.1,0.8715]
[1735556919391,2.78411625,3401.8,3401.1,1.16606]
[1735556919392,0.29455,3401.3,3401.1,1.16606]
[1735556919592,2.78411625,3401.8,3401.2,0.29455]
[1735556919593,0.29454,3401.4,3401.2,0.29455]
[1735556919887,2.36181625,3401.8,3401.1,0.8715]
[1735556920094,2.36181625,3401.8,3401.2,0.29455]
[1735556920291,0.29454,3401.4,3401.2,0.29455]
[1735556920490,2.36181625,3401.8,3401.2,0.29455]
[1735556920791,0.29454,3401.4,3401.2,0.29455]
[1735556921793,2.36181625,3401.8,3401.2,0.29455]
[1735556921999,0.29453,3401.5,3401.2,0.29455]
[1735556922495,0.29452,3401.6,3401.3,0.29454]
[1735556922691,0.29452,3401.6,3401.4,0.29453]
[1735556922885,3.2078,3401.9,3401.4,0.29453]
[1735556923091,3.2078,3401.9,3401.1,0.8715]
[1735556923294,0.29451,3401.7,3401.4,0.29453]
[1735556924298,0.29452,3401.6,3401.3,0.29454]
[1735556925193,0.29452,3401.6,3401.4,0.29453]
[1735556925783,0.29453,3401.5,3401.3,0.29454]
[1735556925986,0.29454,3401.4,3401.2,0.29455]
[1735556926386,0.29454,3401.4,3401.3,0.29454]
[1735556926586,0.29453,3401.5,3401.3,0.29454]
[1735556926985,0.29453,3401.5,3401.4,0.29454]
[1735556927395,0.29454,3401.4,3401.3,0.29454]
[1735556928394,0.29453,3401.5,3401.4,0.29453]
[1735556931694,0.29454,3401.4,3401.3,0.29454]
[1735556932093,0.29454,3401.4,3401.1,0.8715]
[1735556932301,0.29457,3401.0,3400.9,3.6311]
[1735556932495,0.29457,3401.0,3400.9,0.4233]
[1735556932697,3.2078,3401.1,3400.5,3.2078]
[1735556932993,0.29463,3400.3,3400.2,0.73834]
[1735556933202,3.2078,3400.6,3400.2,0.4437]
[1735556933389,0.29463,3400.4,3400.3,0.29463]
[1735556933701,0.29463,3400.3,3400.2,0.73834]
[1735556933893,3.2078,3400.6,3400.2,0.4437]
[1735556934200,0.29463,3400.3,3400.2,0.4437]
[1735556934694,2.36181625,3400.3,3399.1,0.29473]
[1735556934895,0.29471,3399.4,3399.2,0.443]
[1735556935099,0.29472,3399.3,3399.2,0.443]
[1735556935502,0.29473,3399.1,3399.0,3.2078]
[1735556936403,5.56961625,3399.8,3399.0,3.2078]
[1735556936701,0.29472,3399.3,3399.0,3.50254]
[1735556937305,3.2078,3399.8,3399.0,3.2078]
[1735556937497,0.2947,3399.6,3399.4,0.29471]
[1735556938205,0.2947,3399.6,3399.3,0.29471]
[1735556938508,3.2078,3399.8,3399.0,3.79694]
[1735556938804,0.29472,3399.3,3399.0,3.2078]
[1735556938998,5.56961625,3399.8,3399.0,3.2078]
[1735556939314,5.56961625,3399.8,3399.0,3.5022]
[1735556939505,5.56961625,3399.8,3399.0,3.2078]
[1735556939798,3.09858625,3399.5,3398.9,0.4526]
[1735556939998,0.29476,3398.8,3398.7,0.4396]
[1735556940201,0.29475,3399.0,3398.7,0.4396]
[1735556940398,0.29475,3398.9,3398.7,0.4396]
[1735556940599,3.2078,3399.3,3398.7,0.4396]
[1735556940795,0.29476,3398.8,3398.7,0.4396]
[1735556941096,0.29477,3398.7,3398.4,3.5026]
[1735556941300,2.36181625,3399.0,3398.4,3.2078]
[1735556941497,0.29478,3398.6,3398.4,3.2078]
[1735556941704,2.36181625,3399.0,3398.4,3.2078]
[1735556942107,0.29478,3398.6,3398.4,3.50259]
[1735556942405,0.29477,3398.8,3398.5,0.29479]
[1735556942607,0.29477,3398.7,3398.5,0.29479]
[1735556942809,0.29477,3398.7,3398.4,3.2078]
[1735556943003,2.36181625,3399.0,3398.4,3.2078]
[1735556943208,0.29479,3398.6,3398.4,3.2078]
[1735556943405,2.36181625,3399.0,3398.4,3.2078]
[1735556943607,0.29479,3398.6,3398.4,3.2078]
[1735556944109,0.29479,3398.6,3398.4,3.50259]
[1735556944505,2.36181625,3399.0,3398.4,3.50259]
[1735556944712,0.29478,3398.6,3398.4,3.50259]
[1735556945803,0.29475,3398.9,3398.4,3.2078]
[1735556946005,0.29478,3398.6,3398.4,3.2078]
[1735556946200,3.2078,3399.7,3398.5,2.36181625]
[1735556946407,3.2078,3399.7,3399.0,3.2078]
[1735556946608,3.2078,3399.7,3399.1,1.6563]
[1735556946817,2.36181625,3399.6,3399.1,2.0979]
[1735556947012,0.2947,3399.5,3399.2,0.29472]
[1735556947205,0.29472,3399.4,3399.1,2.81673]
[1735556947406,2.36181625,3399.6,3399.1,2.522]
[1735556947607,0.29473,3399.2,3399.1,2.522]
[1735556947805,0.29473,3399.2,3399.1,2.0979]
[1735556948009,0.29473,3399.2,3399.1,1.6563]
[1735556949008,2.36181625,3399.3,3399.1,1.6563]
[1735556949315,2.65653625,3399.3,3399.1,1.6563]
[1735556949612,3.50249,3399.7,3399.4,0.2947]
[1735556949818,0.29471,3399.4,3399.2,0.4178]
[1735556950115,3.50249,3399.7,3399.4,0.29471]
[1735556950709,3.2078,3399.7,3399.5,0.2947]
[1735556951214,3.2078,3399.7,3399.6,0.29469]
[1735556951416,0.4196,3400.4,3399.5,3.2078]
[1735556951417,2.36181625,3400.2,3399.5,3.2078]
[1735556951615,2.36181625,3400.2,3399.9,3.50246]
[1735556952015,2.36181625,3400.2,3400.0,0.29466]
[1735556952412,2.36181625,3400.5,3400.0,0.8409]
[1735556952613,3.2078,3400.7,3400.4,0.29462]
[1735556952811,8.14343438,3401.1,3400.3,3.2078]
[1735556953013,2.36181625,3400.8,3400.3,3.2078]
[1735556953316,2.36181625,3400.8,3400.5,0.29461]
[1735556953614,2.65640625,3400.8,3400.4,0.29462]
[1735556953814,2.65640625,3400.8,3400.5,0.29461]
[1735556954116,2.36181625,3400.8,3400.5,0.29461]
[1735556956219,2.36181625,3400.8,3400.3,3.2078]
[1735556956520,0.29461,3400.5,3400.3,3.2078]
[1735556956715,2.36181625,3400.8,3400.3,3.2078]
[1735556957218,0.29459,3400.8,3400.4,0.29462]
[1735556957411,5.56961625,3401.1,3400.3,3.2078]
[1735556958419,0.29461,3400.6,3400.3,3.2078]
[1735556958617,0.29462,3400.4,3400.3,3.2078]
[1735556958923,0.29462,3400.4,3400.1,0.4191]
[1735556959114,2.36181625,3400.8,3400.1,0.4191]
[1735556959311,0.29458,3400.9,3400.5,0.29461]
[1735556959710,3.2078,3401.0,3400.1,0.4191]
[1735556959916,3.2078,3401.0,3400.1,5.4191]